fUST/lending_fUST_20250726
["ID","MTS","AMOUNT","RATE_DAILY","PERIOD"]
[374984003,1753489839211,-437.67507225,0.00020436,2]
[374984004,1753489839221,-460.0,0.00020436,2]
[374984005,1753489839231,-460.0,0.00020436,2]
[374984006,1753489839240,-460.0,0.00020436,2]
[374984007,1753489839250,-460.0,0.00020436,2]
[374984008,1753489839259,-375.2,0.00020436,2]
[374984009,1753489839269,-460.0,0.00020436,2]
[374984010,1753489839278,-460.0,0.00020437,2]
[374984011,1753489839287,-460.0,0.00020437,2]
[374984012,1753489839296,-460.0,0.00020437,2]
[374984013,1753489839307,-460.0,0.00020437,2]
[374984015,1753489839317,-1302.86,0.00020437,2]
[374984017,1753489839327,-460.0,0.00020437,2]
[374984019,1753489839337,-460.0,0.00020437,2]
[374984021,1753489839347,-460.0,0.00020437,2]
[374984024,1753489839359,-184.2,0.00020535,2]
[374984025,1753489839368,-224.6924781,0.00020535,2]
[374984026,1753489839377,-460.0,0.00020535,2]
[374984027,1753489839387,-460.0,0.00020535,2]
[374984028,1753489839396,-460.0,0.00020535,2]
[374984029,1753489839405,-460.0,0.00020535,2]
[374984030,1753489839415,-460.0,0.00020535,2]
[374984031,1753489839423,-460.0,0.00020535,2]
[374984032,1753489839433,-460.0,0.00020535,2]
[374984033,1753489839442,-460.0,0.00020535,2]
[374984034,1753489839452,-460.0,0.00020535,2]
[374984035,1753489839461,-460.0,0.00020535,2]
[374984036,1753489839470,-460.0,0.00020535,2]
[374984037,1753489839479,-460.0,0.00020535,2]
[374984038,1753489839488,-564.11,0.00020535,2]
[374984039,1753489839497,-460.0,0.00020535,2]
[374984040,1753489839507,-151.0,0.00020536,2]
[374984042,1753489839608,-151.0,0.00020536,2]
[374984043,1753489839618,-460.0,0.00020538,2]
[374984044,1753489839629,-460.0,0.00020538,2]
[374984045,1753489839639,-460.0,0.00020538,2]
[374984046,1753489839649,-151.0,0.0002054,2]
[374984047,1753489839659,-151.0,0.0002054,2]
[374984048,1753489839668,-460.0,0.00020708,2]
[374984049,1753489839677,-1275.77,0.00020709,2]
[374984050,1753489839687,-729.22,0.00020709,2]
[374984051,1753489839696,-686.24,0.00020709,2]
[374984052,1753489839706,-551.25,0.00020709,2]
[374984053,1753489839717,-460.0,0.00020709,2]
[374984054,1753489839727,-460.0,0.00020709,2]
[374984055,1753489839736,-563.38067238,0.0002071,2]
[374984056,1753489839746,-460.0,0.0002071,2]
[374984057,1753489839756,-460.0,0.0002071,2]
[374984058,1753489839768,-460.0,0.0002071,2]
[374984059,1753489839777,-460.0,0.0002071,2]
[374984060,1753489839788,-460.0,0.0002071,2]
[374984061,1753489839797,-460.0,0.00020711,2]
[374984062,1753489839808,-460.0,0.00020711,2]
[374984063,1753489839818,-1302.86,0.00020711,2]
[374984064,1753489839827,-460.0,0.00020711,2]
[374984065,1753489839838,-460.0,0.00020711,2]
[374984066,1753489839847,-460.0,0.00020711,2]
[374984067,1753489839856,-460.0,0.00020809,2]
[374984068,1753489839866,-460.0,0.00020809,2]
[374984069,1753489839875,-460.0,0.00020809,2]
[374984070,1753489839885,-460.0,0.00020809,2]
[374984071,1753489839895,-460.0,0.00020809,2]
[374984072,1753489839905,-460.0,0.00020809,2]
[374984073,1753489839916,-460.0,0.00020809,2]
[374984074,1753489839927,-460.0,0.00020809,2]
[374984075,1753489839937,-460.0,0.00020809,2]
[374984076,1753489839950,-451.7,0.00020809,2]
[374984077,1753489839960,-564.11,0.00020809,2]
[374984078,1753489839969,-460.0,0.00020809,2]
[374984079,1753489839978,-460.0,0.00020812,2]
[374984080,1753489839988,-460.0,0.00020812,2]
[374984081,1753489839997,-151.0,0.00020813,2]
[374984082,1753489840006,-151.0,0.00020813,2]
[374984083,1753489840016,-500.0,0.00020877,2]
[374984084,1753489840026,-540.13657752,0.00020891,2]
[374984085,1753489840035,-630.13669362,0.00020891,2]
[374984086,1753489840048,-460.0,0.00020982,2]
[374984087,1753489840059,-1275.77,0.00020983,2]
[374984088,1753489840070,-729.22,0.00020983,2]
[374984089,1753489840079,-686.24,0.00020983,2]
[374984090,1753489840091,-551.25,0.00020983,2]
[374984091,1753489840100,-460.0,0.00020983,2]
[374984092,1753489840111,-460.0,0.00020983,2]
[374984093,1753489840125,-491.52,0.00020984,2]
[374984094,1753489840135,-460.0,0.00020984,2]
[374984095,1753489840146,-183.7,0.00020984,2]
[374984096,1753489840158,-460.0,0.00020984,2]
[374984097,1753489840168,-460.0,0.00020985,2]
[374984098,1753489840178,-460.0,0.00020985,2]
[374984099,1753489840187,-1302.86,0.00020985,2]
[374984100,1753489840197,-460.0,0.00020985,2]
[374984101,1753489840206,-460.0,0.00020985,2]
[374984102,1753489840215,-460.0,0.00020985,2]
[374984103,1753489840225,-270.3550754,0.00021,2]
[374984104,1753489840234,-25263.41684961,0.00021,2]
[374984105,1753489840243,-274.67,0.0002102,2]
[374984106,1753489840252,-2180.69588467,0.00021042,2]
[374984107,1753489840262,-500.0,0.00021064,2]
[374984108,1753489840271,-151.0,0.00021068,2]
[374984109,1753489840280,-151.0,0.00021068,2]
[374984110,1753489840289,-840.4016166,0.00021074,2]
[374984111,1753489840298,-214.7599002,0.00021075,2]
[374984112,1753489840307,-397.88,0.00021083,2]
[374984113,1753489840317,-460.0,0.00021083,2]
[374984114,1753489840326,-460.0,0.00021083,2]
[374984115,1753489840336,-460.0,0.00021083,2]
[374984116,1753489840346,-460.0,0.00021083,2]
[374984117,1753489840355,-460.0,0.00021083,2]
[374984118,1753489840364,-564.11,0.00021083,2]
[374984119,1753489840374,-460.0,0.00021083,2]
[374984120,1753489840383,-300.17482589,0.00021086,2]
[374984121,1753489840392,-500.0,0.00021086,2]
[374984122,1753489840402,-460.0,0.00021086,2]
[374984123,1753489840411,-460.0,0.00021086,2]
[374984124,1753489840420,-151.0,0.00021087,2]
[374984125,1753489840430,-151.0,0.00021087,2]
[374984126,1753489840439,-500.0,0.000211,2]
[374984127,1753489840449,-500.0,0.00021238,2]
[374984128,1753489840458,-500.0,0.00021238,2]
[374984129,1753489840468,-500.0,0.00021238,2]
[374984130,1753489840479,-500.0,0.00021238,2]
[374984131,1753489840490,-237.054,0.0002124,2]
[374984132,1753489840500,-460.0,0.00021256,2]
[374984133,1753489840509,-1275.77,0.00021257,2]
[374984134,1753489840519,-729.22,0.00021257,2]
[374984135,1753489840529,-686.24,0.00021257,2]
[374984136,1753489840540,-551.25,0.00021257,2]
[374984137,1753489840550,-460.0,0.00021257,2]
[374984138,1753489840561,-460.0,0.00021257,2]
[374984139,1753489840571,-460.0,0.00021258,2]
[374984140,1753489840582,-460.0,0.00021258,2]
[374984141,1753489840594,-460.0,0.00021259,2]
[374984142,1753489840605,-1302.86,0.00021259,2]
[374984143,1753489840615,-460.0,0.00021259,2]
[374984144,1753489840627,-393.18,0.00021259,2]
[374984145,1753489840639,-460.0,0.00021259,2]
[374984146,1753489840650,-197.04,0.00021357,2]
[374984147,1753489840660,-195.35,0.00021357,2]
[374984148,1753489840670,-460.0,0.00021357,2]
[374984149,1753489840679,-460.0,0.00021357,2]
[374984150,1753489840688,-460.0,0.00021357,2]
[374984151,1753489840698,-564.11,0.00021357,2]
[374984152,1753489840707,-396.56,0.00021357,2]
[374984153,1753489840717,-460.0,0.0002136,2]
[374984154,1753489840728,-460.0,0.0002136,2]
[374984155,1753489840737,-151.0,0.00021361,2]
[374984156,1753489840747,-240.934572,0.00021361,2]
[374984157,1753489840758,-10319.62612536,0.000215,2]
[374984158,1753489840767,-460.0,0.0002153,2]
[374984159,1753489840776,-1275.77,0.00021531,2]
[374984160,1753489840786,-729.22,0.00021531,2]
[374984161,1753489840796,-686.24,0.00021531,2]
[374984162,1753489840805,-551.25,0.00021531,2]
[374984163,1753489840815,-460.0,0.00021531,2]
[374984164,1753489840824,-460.0,0.00021531,2]
[374984165,1753489840833,-460.0,0.00021532,2]
[374984166,1753489840844,-460.0,0.00021532,2]
[374984167,1753489840853,-460.0,0.00021533,2]
[374984168,1753489840862,-1302.86,0.00021533,2]
[374984169,1753489840872,-460.0,0.00021533,2]
[374984170,1753489840882,-460.0,0.00021533,2]
[374984171,1753489840893,-460.0,0.00021631,2]
[374984172,1753489840903,-460.0,0.00021631,2]
[374984173,1753489840912,-460.0,0.00021631,2]
[374984174,1753489840922,-564.11,0.00021631,2]
[374984175,1753489840933,-151.0,0.00021632,2]
[374984176,1753489840942,-500.0,0.00021634,2]
[374984177,1753489840953,-460.0,0.00021634,2]
[374984178,1753489840964,-460.0,0.00021634,2]
[374984179,1753489840974,-1000.0,0.00021648,2]
[374984180,1753489840985,-137844.26238786,0.00021739,2]
[374984181,1753489840995,-500.0,0.00021786,2]
[374984182,1753489841006,-1000.0,0.00021786,2]
[374984183,1753489841016,-500.0,0.00021786,2]
[374984184,1753489841027,-500.0,0.00021786,2]
[374984185,1753489841037,-460.0,0.00021804,2]
[374984186,1753489841046,-1275.77,0.00021805,2]
[374984187,1753489841057,-729.22,0.00021805,2]
[374984188,1753489841067,-686.24,0.00021805,2]
[374984189,1753489841076,-551.25,0.00021805,2]
[374984190,1753489841087,-460.0,0.00021805,2]
[374984191,1753489841096,-460.0,0.00021805,2]
[374984192,1753489841107,-460.0,0.00021806,2]
[374984193,1753489841116,-460.0,0.00021806,2]
[374984194,1753489841127,-460.0,0.00021807,2]
[374984195,1753489841136,-1302.86,0.00021807,2]
[374984196,1753489841147,-460.0,0.00021807,2]
[374984197,1753489841158,-460.0,0.00021807,2]
[374984198,1753489841169,-460.0,0.00021905,2]
[374984199,1753489841179,-460.0,0.00021905,2]
[374984200,1753489841188,-460.0,0.00021905,2]
[374984201,1753489841198,-564.11,0.00021905,2]
[374984202,1753489841207,-460.0,0.00021908,2]
[374984203,1753489841217,-460.0,0.00021908,2]
[374984204,1753489841227,-366.22,0.00021934,2]
[374984205,1753489841237,-247.42,0.00022,7]
[374984206,1753489841247,-4186.43,0.00022,7]
[374984207,1753489841256,-817.88,0.00022,7]
[374984208,1753489841265,-27525.68,0.00022,2]
[374984209,1753489841275,-157.0,0.00022,2]
[374984210,1753489841285,-460.0,0.00022078,2]
[374984211,1753489841295,-1275.77,0.00022079,2]
[374984212,1753489841303,-729.22,0.00022079,2]
[374984213,1753489841313,-686.24,0.00022079,2]
[374984214,1753489841322,-551.25,0.00022079,2]
[374984215,1753489841332,-460.0,0.00022079,2]
[374984216,1753489841342,-252.35,0.00022079,2]
[374984217,1753489841353,-460.0,0.0002208,2]
[374984218,1753489841362,-460.0,0.0002208,2]
[374984219,1753489841371,-460.0,0.00022081,2]
[374984220,1753489841381,-1302.86,0.00022081,2]
[374984221,1753489841390,-460.0,0.00022081,2]
[374984222,1753489841400,-154.44,0.00022081,2]
[374984223,1753489841409,-460.0,0.00022179,2]
[374984224,1753489841418,-460.0,0.00022179,2]
[374984225,1753489841428,-460.0,0.00022179,2]
[374984226,1753489841437,-564.11,0.00022179,2]
[374984227,1753489841446,-460.0,0.00022182,2]
[374984228,1753489841456,-460.0,0.00022182,2]
[374984229,1753489841465,-2180.69588467,0.00022295,2]
[374984230,1753489841475,-164.31338182,0.00022334,2]
[374984231,1753489841484,-460.0,0.00022352,2]
[374984232,1753489841493,-1275.77,0.00022353,2]
[374984233,1753489841502,-729.22,0.00022353,2]
[374984234,1753489841511,-686.24,0.00022353,2]
[374984235,1753489841520,-551.25,0.00022353,2]
[374984236,1753489841530,-460.0,0.00022353,2]
[374984237,1753489841539,-460.0,0.00022354,2]
[374984238,1753489841549,-339.49,0.00022354,2]
[374984239,1753489841558,-460.0,0.00022355,2]
[374984240,1753489841569,-1302.86,0.00022355,2]
[374984241,1753489841578,-460.0,0.00022355,2]
[374984242,1753489841599,-460.0,0.00022453,2]
[374984243,1753489841611,-460.0,0.00022453,2]
[374984244,1753489841621,-460.0,0.00022453,2]
[374984245,1753489841630,-564.11,0.00022453,2]
[374984246,1753489841640,-460.0,0.00022456,2]
[374984247,1753489841650,-1311.54,0.00022465,2]
[374984248,1753489841660,-460.0,0.00022626,2]
[374984249,1753489841669,-1275.77,0.00022627,2]
[374984250,1753489841680,-729.22,0.00022627,2]
[374984251,1753489841689,-686.24,0.00022627,2]
[374984252,1753489841699,-551.25,0.00022627,2]
[374984253,1753489841709,-460.0,0.00022627,2]
[374984254,1753489841719,-460.0,0.00022628,2]
[374984255,1753489841728,-460.0,0.00022629,2]
[374984256,1753489841738,-1302.86,0.00022629,2]
[374984257,1753489841747,-460.0,0.00022629,2]
[374984258,1753489841757,-460.0,0.00022727,2]
[374984259,1753489841767,-460.0,0.00022727,2]
[374984260,1753489841777,-460.0,0.00022727,2]
[374984261,1753489841788,-564.11,0.00022727,2]
[374984262,1753489841797,-460.0,0.0002273,2]
[374984263,1753489841807,-457.78,0.00022848,2]
[374984264,1753489841816,-460.0,0.000229,2]
[374984265,1753489841826,-1275.77,0.00022901,2]
[374984266,1753489841835,-729.22,0.00022901,2]
[374984267,1753489841845,-686.24,0.00022901,2]
[374984268,1753489841855,-551.25,0.00022901,2]
[374984269,1753489841864,-460.0,0.00022901,2]
[374984270,1753489841874,-276.42,0.00022902,2]
[374984271,1753489841884,-609.58,0.00022903,2]
[374984272,1753489841893,-1302.86,0.00022903,2]
[374984273,1753489841903,-460.0,0.00022903,2]
[374984274,1753489841913,-332.85,0.00022919,2]
[374984275,1753489841923,-4000.0,0.00022973,4]
[374984276,1753489841932,-160.0,0.00023,2]
[374984277,1753489841942,-460.0,0.00023001,2]
[374984278,1753489841953,-391.97,0.00023001,2]
[374984279,1753489841962,-460.0,0.00023001,2]
[374984280,1753489841972,-477.7665857,0.00023001,2]
[374984281,1753489842029,-345.99437526,0.00019614,2]
[374984282,1753489842040,-114.00562474,0.00019614,2]
[374984283,1753489842053,-460.0,0.00019888,2]
[374984284,1753489842063,-86.3434143,0.00023001,2]
[374984285,1753489842072,-484.43,0.00023004,2]
[374984286,1753489842081,-1.81135884,0.00023174,2]
[374984287,1753489842095,-458.18864116,0.00023174,2]
[374984288,1753489842105,-371.0915314,0.00023175,2]
[374984289,1753489842119,-457.97245164,0.00023175,2]
[374984290,1753489842133,-446.70601696,0.00023175,2]
[374984291,1753489842144,-729.22,0.00023175,2]
[374984292,1753489842154,-279.56126721,0.00023175,2]
[374984293,1753489842167,-406.67873279,0.00023175,2]
[374984294,1753489842178,-551.25,0.00023175,2]
[374984295,1753489842188,-460.0,0.00023175,2]
[374984296,1753489842199,-1302.86,0.00023177,2]
[374984297,1753489842208,-460.0,0.00023177,2]
[374984298,1753489842218,-500.0,0.00023256,2]
[374984299,1753489842346,-460.0,0.00023275,2]
[374984301,1753489842356,-460.0,0.00023275,2]
[374984303,1753489842366,-564.11,0.00023275,2]
[374984306,1753489842376,-184.9,0.00023343,2]
[374984308,1753489842385,-460.0,0.00023448,2]
[374984310,1753489842396,-1275.77,0.00023449,2]
[374984312,1753489842406,-729.22,0.00023449,2]
[374984314,1753489842415,-686.24,0.00023449,2]
[374984316,1753489842425,-551.25,0.00023449,2]
[374984318,1753489842434,-157.07707308,0.00023449,2]
[374984337,1753489842807,-460.0,0.00019614,2]
[374984338,1753489842818,-215.93003454,0.00021074,2]
[374984339,1753489842828,-486.82,0.00021729,10]
[374984340,1753489842837,-302.92292692,0.00023449,2]
[374984342,1753489842848,-1302.86,0.00023451,2]
[374984344,1753489842857,-460.0,0.00023451,2]
[374984346,1753489842868,-27525.68,0.000235,2]
[374984348,1753489842878,-2180.69588467,0.00023547,2]
[374984350,1753489842891,-460.0,0.00023549,2]
[374984352,1753489842901,-460.0,0.00023549,2]
[374984354,1753489842910,-564.11,0.00023549,2]
[374984355,1753489842920,-4186.43,0.000236,7]
[374984356,1753489842929,-817.88,0.000236,7]
[374984357,1753489842939,-312.16666667,0.000236,7]
[374984358,1753489842949,-25000.0,0.00023646,2]
[374984359,1753489842959,-12520.89489481,0.00023646,2]
[374984360,1753489842969,-151.0,0.00023646,2]
[374984361,1753489842978,-281.10525357,0.00023646,2]
[374984362,1753489842988,-151.0,0.00023646,2]
[374984363,1753489842997,-151.0,0.00023646,2]
[374984364,1753489843006,-151.0,0.00023646,2]
[374984365,1753489843015,-151.0,0.00023646,2]
[374984366,1753489843024,-151.0,0.00023646,2]
[374984367,1753489843033,-151.0,0.00023646,2]
[374984368,1753489843043,-151.0,0.00023646,2]
[374984369,1753489843054,-151.0,0.00023646,2]
[374984370,1753489843063,-151.0,0.00023646,2]
[374984371,1753489843072,-151.0,0.00023646,2]
[374984372,1753489843081,-151.0,0.00023646,2]
[374984373,1753489843091,-151.0,0.00023646,2]
[374984374,1753489843100,-151.0,0.00023646,2]
[374984375,1753489843110,-151.0,0.00023646,2]
[374984376,1753489843119,-215.0738,0.00023646,2]
[374984377,1753489843128,-207.20970338,0.00023646,2]
[374984378,1753489843138,-151.0,0.00023646,2]
[374984379,1753489843147,-151.0,0.00023646,2]
[374984380,1753489843157,-286.5259559,0.00023646,2]
[374984381,1753489843166,-151.0,0.00023646,2]
[374984382,1753489843175,-151.0,0.00023646,2]
[374984383,1753489843184,-151.0,0.00023646,2]
[374984384,1753489843193,-151.0,0.00023646,2]
[374984385,1753489843203,-151.0,0.00023646,2]
[374984386,1753489843212,-151.0,0.00023646,2]
[374984387,1753489843222,-151.0,0.00023646,2]
[374984388,1753489843231,-151.36106187,0.00023646,2]
[374984389,1753489843240,-151.0,0.00023646,2]
[374984390,1753489843249,-151.0,0.00023646,2]
[374984391,1753489843259,-151.0,0.00023646,2]
[374984392,1753489843273,-151.0,0.00023646,2]
[374984393,1753489843290,-151.0,0.00023646,2]
[374984394,1753489843300,-151.0,0.00023646,2]
[374984395,1753489843309,-151.0,0.00023646,2]
[374984396,1753489843319,-151.0,0.00023646,2]
[374984397,1753489843330,-151.0,0.00023646,2]
[374984398,1753489843350,-151.0,0.00023646,2]
[374984399,1753489843359,-151.0,0.00023646,2]
[374984400,1753489843369,-151.0,0.00023646,2]
[374984401,1753489843378,-151.0,0.00023646,2]
[374984402,1753489843387,-151.0,0.00023646,2]
[374984403,1753489843397,-151.0,0.00023646,2]
[374984404,1753489843406,-151.0,0.00023646,2]
[374984405,1753489843416,-460.0,0.00023722,2]
[374984406,1753489843425,-1275.77,0.00023723,2]
[374984407,1753489843435,-729.22,0.00023723,2]
[374984408,1753489843444,-686.24,0.00023723,2]
[374984409,1753489843454,-551.25,0.00023723,2]
[374984410,1753489843463,-460.0,0.00023723,2]
[374984411,1753489843472,-1302.86,0.00023725,2]
[374984412,1753489843481,-460.0,0.00023725,2]
[374984413,1753489843491,-549.33,0.00023762,2]
[374984414,1753489843500,-460.0,0.00023823,2]
[374984415,1753489843519,-460.0,0.00023823,2]
[374984416,1753489843532,-564.11,0.00023823,2]
[374984417,1753489843541,-429.8269109,0.00023945,2]
[374984418,1753489843551,-969.0,0.00023974,2]
[374984419,1753489843561,-407.0,0.00023974,2]
[374984420,1753489843570,-648.0,0.00023974,2]
[374984421,1753489843579,-460.0,0.00023996,2]
[374984422,1753489843588,-1275.77,0.00023997,2]
[374984423,1753489843599,-729.22,0.00023997,2]
[374984424,1753489843608,-686.24,0.00023997,2]
[374984425,1753489843618,-551.25,0.00023997,2]
[374984426,1753489843627,-460.0,0.00023997,2]
[374984427,1753489843637,-1302.86,0.00023999,2]
[374984428,1753489843647,-460.0,0.00023999,2]
[374984429,1753489843657,-247.42,0.00024,7]
[374984430,1753489843668,-507.79,0.00024097,2]
[374984431,1753489843677,-460.0,0.00024097,2]
[374984432,1753489843687,-564.11,0.00024097,2]
[374984433,1753489843698,-306.0,0.0002411,2]
[374984434,1753489843708,-159.8396335,0.0002411,2]
[374984435,1753489843717,-4000.0,0.00024144,4]
[374984436,1753489843727,-332.85,0.00024206,2]
[374984437,1753489843736,-460.0,0.0002427,2]
[374984438,1753489843746,-1275.77,0.00024271,2]
[374984439,1753489843755,-729.22,0.00024271,2]
[374984440,1753489843765,-686.24,0.00024271,2]
[374984441,1753489843775,-551.25,0.00024271,2]
[374984442,1753489843785,-460.0,0.00024271,2]
[374984443,1753489843794,-1302.86,0.00024273,2]
[374984444,1753489843804,-460.0,0.00024273,2]
[374984445,1753489843813,-460.0,0.00024371,2]
[374984446,1753489843825,-564.11,0.00024371,2]
[374984447,1753489843834,-159.612423,0.00024401,8]
[374984448,1753489843846,-168.0,0.0002443,2]
[374984449,1753489843855,-460.0,0.00024544,2]
[374984450,1753489843864,-1275.77,0.00024545,2]
[374984451,1753489843874,-729.22,0.00024545,2]
[374984452,1753489843884,-686.24,0.00024545,2]
[374984453,1753489843893,-551.25,0.00024545,2]
[374984454,1753489843903,-519.92,0.00024545,2]
[374984455,1753489843912,-1302.86,0.00024547,2]
[374984456,1753489843922,-460.0,0.00024547,2]
[374984457,1753489843931,-460.0,0.00024645,2]
[374984458,1753489843941,-564.11,0.00024645,2]
[374984459,1753489843950,-640.89,0.00024676,2]
[374984460,1753489843959,-153.195573,0.000248,15]
[374984461,1753489843969,-2180.69588467,0.000248,2]
[374984462,1753489843979,-5311.47299571,0.00024804,2]
[374984463,1753489843988,-460.0,0.00024818,2]
[374984464,1753489843997,-1275.77,0.00024819,2]
[374984465,1753489844007,-729.22,0.00024819,2]
[374984466,1753489844016,-686.24,0.00024819,2]
[374984467,1753489844025,-551.25,0.00024819,2]
[374984468,1753489844035,-1302.86,0.00024821,2]
[374984469,1753489844046,-250.99,0.00024821,2]
[374984470,1753489844060,-500.0,0.00024857,2]
[374984471,1753489844070,-470.80474086,0.000249,2]
[374984472,1753489844080,-532.56,0.000249,2]
[374984473,1753489844091,-151.0,0.000249,7]
[374984474,1753489844101,-151.0,0.000249,7]
[374984475,1753489844111,-151.0,0.000249,7]
[374984476,1753489844121,-151.0,0.000249,7]
[374984477,1753489844131,-151.0,0.000249,7]
[374984478,1753489844141,-151.0,0.000249,7]
[374984479,1753489844151,-151.0,0.000249,7]
[374984480,1753489844161,-151.0,0.000249,7]
[374984481,1753489844170,-2369.269,0.000249,2]
[374984482,1753489844181,-67959.6248396,0.000249,2]
[374984485,1753489845852,-1539.4885914,0.000249,2]
[374984486,1753489845864,-510.2507475,0.000249,2]
[374984487,1753489845877,-881.7086952,0.000249,2]
[374984488,1753489846095,-45923.37692613,0.000249,2]
[374984489,1753489846107,-7293.99937082,0.000249,2]
[374984490,1753489891054,200.0,0.00025247,120]
[374984491,1753489914677,500.0,0.00027397,120]
[374984492,1753489914911,500.0,0.00027397,120]
[374984493,1753489915163,500.0,0.00027397,120]
[374984494,1753489915409,500.0,0.00027397,120]
[374984495,1753489915651,500.0,0.00027397,120]
[374984496,1753489915909,500.0,0.00027397,120]
[374984497,1753489917158,500.0,0.00027397,120]
[374984498,1753489917396,500.0,0.00027397,120]
[374984499,1753489917662,500.0,0.00027397,120]
[374984500,1753489917909,500.0,0.00027397,120]
[374984501,1753489918146,500.0,0.00027397,120]
[374984502,1753489918507,116.50961735,0.00027397,120]
[374984510,1753489954007,200.0,0.00025815,120]
[374984514,1753489988890,158.0,0.00024,120]
[374984515,1753489990302,42.0,0.000251,120]
[374984516,1753489990323,116.0,0.000251,120]
[374984517,1753489991631,158.0,0.000262,120]
[374984519,1753490011807,200.0,0.00025324,120]
[374984521,1753490044058,800.0,0.00025875,60]
[374984522,1753490059733,741.97,0.00017,2]
[374984523,1753490071793,200.0,0.00025838,120]
[374984528,1753490131578,200.0,0.00025696,120]
[374984530,1753490191602,200.0,0.0002597,120]
[374984531,1753490422487,200.0,0.00027,120]
[374984532,1753490451454,-4725.0,0.00018852,6]
[374984538,1753490747103,500.0,0.00027,120]
[374984539,1753490781411,-920.0,0.00018512,2]
[374984547,1753490988888,166.278575,0.00013699,2]
[374984595,1753491032130,-40.0,0.00018512,2]
[374984597,1753491032140,-150.0,0.00019234,2]
[374984598,1753491032150,-312.16666667,0.00019494,2]
[374984600,1753491032159,-443.0,0.00019513,2]
[374984602,1753491032168,-122.40047149,0.00019514,2]
[374984757,1753491037864,-763.062,0.00019514,2]
[374984763,1753491037918,-13153.59842863,0.00019514,2]
[374984765,1753491037927,-460.0,0.00019514,2]
[374984767,1753491037938,-460.0,0.00019514,2]
[374984769,1753491037947,-460.0,0.00019514,2]
[374984771,1753491037957,-460.0,0.00019514,2]
[374984772,1753491037966,-460.0,0.00019514,2]
[374984774,1753491037976,-460.0,0.00019514,2]
[374984777,1753491037986,-460.0,0.00019514,2]
[374984778,1753491037995,-462.83383165,0.00019514,2]
[374984780,1753491038005,-466.48323368,0.00019514,2]
[374984782,1753491038014,-460.0,0.00019514,2]
[374984784,1753491038023,-429.64154219,0.00019514,2]
[374984786,1753491038033,-460.0,0.00019514,2]
[374984788,1753491038043,-460.0,0.00019514,2]
[374984790,1753491038056,-478.42,0.00019514,2]
[374984792,1753491038066,-460.0,0.00019514,2]
[374984794,1753491038081,-460.0,0.00019514,2]
[374984796,1753491038090,-460.0,0.00019514,2]
[374984797,1753491038099,-460.0,0.00019514,2]
[374984799,1753491038109,-460.0,0.00019514,2]
[374984801,1753491038119,-373.02296385,0.00019514,2]
[374984804,1753491038134,-86.97703615,0.00019514,2]